fUSD/lending_fUSD_20250222
["ID","MTS","AMOUNT","RATE_DAILY","PERIOD"]
[354078222,1740225050098,-500.0,0.00011205,2]
[354078225,1740225050108,-500.0,0.00011205,2]
[354078227,1740225050118,-500.0,0.00011205,2]
[354078228,1740225050127,-500.0,0.00011205,2]
[354078231,1740225050137,-358.0399701,0.00011205,2]
[354078232,1740225050146,-500.0,0.00011205,2]
[354078235,1740225050156,-503.24822875,0.00011205,2]
[354078236,1740225050165,-213.03829489,0.00011205,2]
[354078239,1740225050175,-500.0,0.00011205,2]
[354078241,1740225050185,-597.49370023,0.00011205,2]
[354078242,1740225050198,-500.0,0.00011205,2]
[354078245,1740225050207,-500.0,0.00011205,2]
[354078247,1740225050217,-500.0,0.00011205,2]
[354078249,1740225050227,-291.9876073,0.00011205,2]
[354078251,1740225050236,-484.99439751,0.00011205,2]
[354078253,1740225050245,-500.0,0.00011205,2]
[354078255,1740225050256,-565.6990458,0.00011205,2]
[354078256,1740225050267,-500.0,0.00011205,2]
[354078258,1740225050276,-500.0,0.00011205,2]
[354078260,1740225050286,-500.0,0.00011205,2]
[354078262,1740225050296,-500.0,0.00011205,2]
[354078264,1740225050304,-500.0,0.00011205,2]
[354078266,1740225050313,-500.0,0.00011205,2]
[354078268,1740225050322,-500.0,0.00011205,2]
[354078270,1740225050332,-500.0,0.00011205,2]
[354078272,1740225050341,-500.0,0.00011205,2]
[354078274,1740225050351,-521.98996472,0.00011205,2]
[354078276,1740225050360,-500.0,0.00011205,2]
[354078279,1740225050369,-500.0,0.00011205,2]
[354078280,1740225050378,-500.0,0.00011205,2]
[354078282,1740225050387,-304.21762102,0.00011205,2]
[354078284,1740225050396,-364.71,0.00011205,2]
[354078286,1740225050405,-500.0,0.00011205,2]
[354078288,1740225050414,-500.0,0.00011205,2]
[354078290,1740225050424,-500.0,0.00011205,2]
[354078292,1740225050433,-500.0,0.00011205,2]
[354078294,1740225050443,-500.0,0.00011205,2]
[354078296,1740225050452,-500.0,0.00011205,2]
[354078297,1740225050461,-500.0,0.00011205,2]
[354078298,1740225050470,-500.0,0.00011205,2]
[354078299,1740225050479,-581.13458765,0.00011205,2]
[354078300,1740225050489,-500.0,0.00011205,2]
[354078301,1740225050498,-500.0,0.00011205,2]
[354078302,1740225050507,-500.0,0.00011205,2]
[354078303,1740225050517,-199.28,0.00011205,2]
[354078304,1740225050526,-500.0,0.00011205,2]
[354078306,1740225050536,-500.0,0.00011205,2]
[354078308,1740225050545,-500.0,0.00011205,2]
[354078309,1740225050555,-500.0,0.00011205,2]
[354078310,1740225050564,-500.0,0.00011205,2]
[354078311,1740225050574,-500.0,0.00011205,2]
[354078312,1740225050583,-500.0,0.00011205,2]
[354078313,1740225050592,-496.75620364,0.00011205,2]
[354078326,1740225050748,-3.24379636,0.00011205,2]
[354078327,1740225050757,-500.0,0.00011205,2]
[354078328,1740225050766,-500.0,0.00011205,2]
[354078329,1740225050775,-172.73,0.00011205,2]
[354078330,1740225050785,-500.0,0.00011205,2]
[354078331,1740225050795,-500.0,0.00011205,2]
[354078332,1740225050804,-277.89,0.00011205,2]
[354078333,1740225050813,-500.0,0.00011205,2]
[354078334,1740225050823,-500.0,0.00011205,2]
[354078335,1740225050832,-313.309736,0.00011205,2]
[354078336,1740225050841,-500.0,0.00011205,2]
[354078337,1740225050851,-500.0,0.00011205,2]
[354078338,1740225050859,-152.54812835,0.00011205,2]
[354078339,1740225050871,-127.86531284,0.00011205,2]
[354078340,1740225050880,-339.55568766,0.00011205,2]
[354078341,1740225050904,-160.44431234,0.00011205,2]
[354078342,1740225050913,-505.88,0.00011205,2]
[354078343,1740225050923,-500.0,0.00011205,2]
[354078345,1740225050931,-500.0,0.00011205,2]
[354078347,1740225050940,-502.10748003,0.00011221,2]
[354078349,1740225050951,-6248.38068199,0.00011247,2]
[354078351,1740225050959,-500.0,0.00011286,2]
[354078353,1740225050969,-500.0,0.00011286,2]
[354078355,1740225050979,-500.0,0.00011286,2]
[354078357,1740225050989,-500.0,0.00011286,2]
[354078359,1740225050998,-500.0,0.00011286,2]
[354078361,1740225051007,-372.45395002,0.00011286,2]
[354078363,1740225051017,-500.0,0.00011286,2]
[354078365,1740225051026,-500.0,0.00011286,2]
[354078367,1740225051035,-487.71767819,0.00011286,2]
[354078369,1740225051044,-500.0,0.00011286,2]
[354078370,1740225051053,-500.0,0.00011286,2]
[354078372,1740225051062,-500.0,0.00011286,2]
[354078373,1740225051071,-500.0,0.00011286,2]
[354078374,1740225051081,-186.61988519,0.00011286,2]
[354078375,1740225051090,-500.0,0.00011286,2]
[354078376,1740225051100,-1663.07,0.00011286,2]
[354078377,1740225051110,-500.0,0.00011286,2]
[354078378,1740225051120,-500.0,0.00011286,2]
[354078379,1740225051129,-509.66037956,0.00011287,2]
[354078380,1740225051139,-366.31,0.00011287,2]
[354078381,1740225051148,-447.55128518,0.00011287,2]
[354078382,1740225051158,-500.0,0.00011287,2]
[354078383,1740225051167,-500.0,0.00011287,2]
[354078384,1740225051177,-500.0,0.00011287,2]
[354078385,1740225051186,-496.23531567,0.00011287,2]
[354078386,1740225051195,-252.95,0.00011287,2]
[354078387,1740225051205,-500.0,0.00011287,2]
[354078388,1740225051215,-500.0,0.00011287,2]
[354078389,1740225051224,-647.73404802,0.00011287,2]
[354078390,1740225051234,-137.50833419,0.00011287,2]
[354078391,1740225051245,-46.5574282,0.00011287,2]
[354078392,1740225051255,-163.90779134,0.00011287,2]
[354078393,1740225051264,-299.39446951,0.00011287,2]
[354078394,1740225051273,-472.55830383,0.00011287,2]
[354078395,1740225051282,-550.68334088,0.00011287,2]
[354078396,1740225051291,-500.0,0.00011287,2]
[354078397,1740225051300,-500.0,0.00011287,2]
[354078398,1740225051309,-500.0,0.00011287,2]
[354078399,1740225051319,-500.0,0.00011287,2]
[354078400,1740225051328,-500.0,0.00011287,2]
[354078401,1740225051338,-398.53974592,0.00011287,2]
[354078402,1740225051348,-500.0,0.00011287,2]
[354078403,1740225051358,-161.05965538,0.00011287,2]
[354078404,1740225051368,-595.54384389,0.00011287,2]
[354078405,1740225051378,-500.0,0.00011287,2]
[354078406,1740225051387,-500.0,0.00011287,2]
[354078407,1740225051398,-500.0,0.00011287,2]
[354078408,1740225051407,-500.0,0.00011287,2]
[354078409,1740225051418,-500.0,0.00011287,2]
[354078410,1740225051429,-500.0,0.00011287,2]
[354078411,1740225051439,-500.0,0.00011287,2]
[354078412,1740225051449,-500.0,0.00011287,2]
[354078413,1740225051460,-500.0,0.00011287,2]
[354078414,1740225051470,-500.0,0.00011287,2]
[354078415,1740225051479,-500.0,0.00011287,2]
[354078416,1740225051488,-500.0,0.00011287,2]
[354078417,1740225051498,-500.0,0.00011287,2]
[354078418,1740225051508,-500.0,0.00011287,2]
[354078419,1740225051650,-500.0,0.00011287,2]
[354078420,1740225051660,-289.41,0.00011287,2]
[354078421,1740225051670,-588.64,0.00011287,2]
[354078422,1740225051681,-500.0,0.00011287,2]
[354078423,1740225051691,-433.48,0.00011287,2]
[354078424,1740225051701,-500.0,0.00011287,2]
[354078425,1740225051711,-500.0,0.00011287,2]
[354078426,1740225051723,-272.65,0.00011287,2]
[354078427,1740225051733,-500.0,0.00011287,2]
[354078428,1740225051743,-500.0,0.00011287,2]
[354078429,1740225051752,-221.45,0.00011287,2]
[354078430,1740225051762,-500.0,0.00011287,2]
[354078431,1740225051771,-500.0,0.00011287,2]
[354078432,1740225051780,-606.09363228,0.00011287,2]
[354078433,1740225051789,-500.0,0.00011287,2]
[354078434,1740225051799,-187.04,0.00011287,2]
[354078435,1740225051809,-500.0,0.00011287,2]
[354078436,1740225051818,-500.0,0.00011287,2]
[354078437,1740225051828,-500.0,0.00011287,2]
[354078438,1740225051846,-313.309736,0.00011287,2]
[354078439,1740225051857,-500.0,0.00011287,2]
[354078440,1740225051867,-500.0,0.00011287,2]
[354078441,1740225051876,-504.86874886,0.00011287,2]
[354078442,1740225051886,-150.0,0.00011292,2]
[354078443,1740225051897,-420.0,0.00011333,2]
[354078444,1740225051910,-196.91,0.00011349,2]
[354078445,1740225051920,-183.814605,0.00011368,2]
[354078446,1740225051931,-500.0,0.00011368,2]
[354078447,1740225051943,-500.0,0.00011368,2]
[354078448,1740225051952,-500.0,0.00011368,2]
[354078449,1740225051965,-500.0,0.00011368,2]
[354078450,1740225051974,-500.0,0.00011368,2]
[354078451,1740225051986,-500.0,0.00011368,2]
[354078452,1740225051996,-500.0,0.00011368,2]
[354078453,1740225052006,-605.12,0.00011368,2]
[354078454,1740225052015,-500.0,0.00011368,2]
[354078455,1740225052026,-500.0,0.00011368,2]
[354078456,1740225052036,-500.0,0.00011368,2]
[354078457,1740225052047,-492.39412207,0.00011368,2]
[354078458,1740225052058,-1663.07,0.00011368,2]
[354078459,1740225052068,-500.0,0.00011368,2]
[354078460,1740225052078,-311.91,0.00011368,2]
[354078461,1740225052089,-500.0,0.00011369,2]
[354078462,1740225052098,-500.0,0.00011369,2]
[354078463,1740225052109,-468.46654004,0.00011369,2]
[354078464,1740225052120,-500.0,0.00011369,2]
[354078465,1740225052129,-599.08,0.00011369,2]
[354078466,1740225052139,-177.13392877,0.00011369,2]
[354078467,1740225052148,-314.43085316,0.00011369,2]
[354078468,1740225052158,-500.0,0.00011369,2]
[354078469,1740225052167,-573.31647815,0.00011369,2]
[354078470,1740225052177,-500.0,0.00011369,2]
[354078471,1740225052186,-500.0,0.00011369,2]
[354078472,1740225052195,-500.0,0.00011369,2]
[354078473,1740225052204,-500.0,0.00011369,2]
[354078474,1740225052214,-500.0,0.00011369,2]
[354078475,1740225052223,-500.0,0.00011369,2]
[354078476,1740225052233,-607.17036521,0.00011369,2]
[354078477,1740225052242,-500.0,0.00011369,2]
[354078478,1740225052252,-500.0,0.00011369,2]
[354078479,1740225052261,-450.98047577,0.00011369,2]
[354078480,1740225052270,-500.0,0.00011369,2]
[354078481,1740225052280,-500.0,0.00011369,2]
[354078482,1740225052291,-408.9368622,0.00011369,2]
[354078483,1740225052301,-500.0,0.00011369,2]
[354078484,1740225052311,-500.0,0.00011369,2]
[354078485,1740225052321,-500.0,0.00011369,2]
[354078486,1740225052331,-261.97,0.00011369,2]
[354078487,1740225052341,-500.0,0.00011369,2]
[354078488,1740225052351,-500.0,0.00011369,2]
[354078489,1740225052362,-163.18,0.00011369,2]
[354078490,1740225052371,-312.18,0.00011369,2]
[354078491,1740225052381,-500.0,0.00011369,2]
[354078492,1740225052390,-500.0,0.00011369,2]
[354078493,1740225052399,-500.0,0.00011369,2]
[354078494,1740225052408,-500.0,0.00011369,2]
[354078495,1740225052417,-500.0,0.00011369,2]
[354078496,1740225052426,-500.0,0.00011369,2]
[354078497,1740225052435,-500.0,0.00011369,2]
[354078498,1740225052445,-313.309736,0.00011369,2]
[354078499,1740225052455,-500.0,0.00011369,2]
[354078500,1740225052465,-500.0,0.00011369,2]
[354078501,1740225052475,-500.0,0.0001145,2]
[354078502,1740225052484,-647.70015754,0.0001145,2]
[354078503,1740225052493,-500.0,0.0001145,2]
[354078504,1740225052503,-500.0,0.0001145,2]
[354078505,1740225052513,-500.0,0.0001145,2]
[354078506,1740225052523,-500.0,0.0001145,2]
[354078507,1740225052532,-500.0,0.0001145,2]
[354078508,1740225052542,-500.0,0.0001145,2]
[354078509,1740225052551,-500.0,0.0001145,2]
[354078510,1740225052562,-500.0,0.0001145,2]
[354078511,1740225052571,-1663.07,0.0001145,2]
[354078512,1740225052580,-500.0,0.0001145,2]
[354078513,1740225052591,-500.0,0.00011451,2]
[354078514,1740225052600,-500.0,0.00011451,2]
[354078515,1740225052612,-243.83578368,0.00011451,2]
[354078516,1740225052622,-500.0,0.00011451,2]
[354078517,1740225052631,-500.0,0.00011451,2]
[354078518,1740225052640,-500.0,0.00011451,2]
[354078519,1740225052648,-500.0,0.00011451,2]
[354078520,1740225052658,-500.0,0.00011451,2]
[354078521,1740225052668,-500.0,0.00011451,2]
[354078522,1740225052678,-629.48,0.00011451,2]
[354078523,1740225052687,-645.66139805,0.00011451,2]
[354078524,1740225052696,-500.0,0.00011451,2]
[354078525,1740225052706,-500.0,0.00011451,2]
[354078526,1740225052715,-500.0,0.00011452,2]
[354078527,1740225052724,-500.0,0.00011452,2]
[354078528,1740225052733,-500.0,0.00011452,2]
[354078529,1740225052742,-500.0,0.00011452,2]
[354078530,1740225052751,-500.0,0.00011452,2]
[354078531,1740225052760,-500.0,0.00011452,2]
[354078532,1740225052770,-433.36801888,0.00011452,2]
[354078533,1740225052779,-157.24,0.00011452,2]
[354078534,1740225052788,-338.9,0.00011452,2]
[354078535,1740225052798,-500.0,0.00011452,2]
[354078536,1740225052807,-500.0,0.00011452,2]
[354078537,1740225052816,-500.0,0.00011452,2]
[354078538,1740225052826,-500.0,0.00011452,2]
[354078539,1740225052836,-500.0,0.00011452,2]
[354078540,1740225052845,-500.0,0.00011452,2]
[354078541,1740225052855,-209.94442415,0.00011456,2]
[354078542,1740225052865,-313.7717194,0.0001149,2]
[354078543,1740225052874,-500.0,0.00011532,2]
[354078544,1740225052883,-500.0,0.00011532,2]
[354078545,1740225052892,-500.0,0.00011532,2]
[354078546,1740225052904,-500.0,0.00011532,2]
[354078547,1740225052914,-389.5406477,0.00011532,2]
[354078548,1740225052923,-500.0,0.00011532,2]
[354078549,1740225052933,-500.0,0.00011532,2]
[354078550,1740225052942,-500.0,0.00011532,2]
[354078551,1740225052952,-500.0,0.00011532,2]
[354078552,1740225052962,-1663.07,0.00011532,2]
[354078553,1740225052971,-500.0,0.00011532,2]
[354078554,1740225052982,-500.0,0.00011533,2]
[354078555,1740225052991,-500.0,0.00011533,2]
[354078556,1740225053000,-484.86966524,0.00011533,2]
[354078557,1740225053011,-500.0,0.00011533,2]
[354078558,1740225053020,-502.42507692,0.00011533,2]
[354078559,1740225053029,-500.0,0.00011533,2]
[354078560,1740225053037,-324.25986562,0.00011533,2]
[354078561,1740225053047,-500.0,0.00011533,2]
[354078562,1740225053056,-500.0,0.00011533,2]
[354078563,1740225053065,-403.62104155,0.00011533,2]
[354078564,1740225053074,-500.0,0.00011534,2]
[354078565,1740225053083,-343.71,0.00011534,2]
[354078566,1740225053091,-500.0,0.00011534,2]
[354078567,1740225053101,-500.0,0.00011534,2]
[354078568,1740225053110,-500.0,0.00011534,2]
[354078569,1740225053119,-500.0,0.00011534,2]
[354078570,1740225053128,-500.0,0.00011534,2]
[354078571,1740225053138,-500.0,0.00011534,2]
[354078572,1740225053147,-500.0,0.00011534,2]
[354078573,1740225053156,-500.0,0.00011534,2]
[354078574,1740225053166,-500.0,0.00011534,2]
[354078575,1740225053175,-500.0,0.00011534,2]
[354078576,1740225053185,-6248.38068199,0.00011553,2]
[354078577,1740225053194,-500.0,0.00011615,2]
[354078578,1740225053203,-500.0,0.00011615,2]
[354078579,1740225053212,-500.0,0.00011615,2]
[354078580,1740225053222,-500.0,0.00011615,2]
[354078581,1740225053231,-355.74302956,0.00011615,2]
[354078582,1740225053240,-500.0,0.00011615,2]
[354078583,1740225053249,-500.0,0.00011615,2]
[354078584,1740225053258,-500.0,0.00011615,2]
[354078585,1740225053267,-1663.07,0.00011615,2]
[354078586,1740225053276,-500.0,0.00011615,2]
[354078587,1740225053285,-257.12528353,0.00011616,2]
[354078588,1740225053295,-200.7376403,0.00011616,2]
[354078589,1740225053304,-500.0,0.00011616,2]
[354078590,1740225053313,-500.0,0.00011616,2]
[354078591,1740225053322,-500.0,0.00011616,2]
[354078592,1740225053332,-500.0,0.00011616,2]
[354078593,1740225053341,-500.0,0.00011616,2]
[354078594,1740225053350,-500.0,0.00011616,2]
[354078595,1740225053361,-500.0,0.00011616,2]
[354078596,1740225053370,-500.0,0.00011616,2]
[354078597,1740225053380,-500.0,0.00011616,2]
[354078598,1740225053389,-500.0,0.00011616,2]
[354078599,1740225053398,-500.0,0.00011616,2]
[354078600,1740225053407,-500.0,0.00011616,2]
[354078601,1740225053417,-500.0,0.00011616,2]
[354078602,1740225053427,-414.03342467,0.00011616,2]
[354078603,1740225053437,-500.0,0.00011616,2]
[354078604,1740225053446,-500.0,0.00011697,2]
[354078605,1740225053456,-531.88006414,0.00011697,2]
[354078606,1740225053465,-351.12934883,0.00011697,2]
[354078607,1740225053475,-500.0,0.00011697,2]
[354078608,1740225053485,-500.0,0.00011697,2]
[354078609,1740225053495,-500.0,0.00011697,2]
[354078610,1740225053504,-562.39411325,0.00011697,2]
[354078611,1740225053513,-1663.07,0.00011697,2]
[354078612,1740225053523,-500.0,0.00011697,2]
[354078613,1740225053533,-500.0,0.00011698,2]
[354078614,1740225053542,-500.0,0.00011698,2]
[354078615,1740225053552,-500.0,0.00011698,2]
[354078616,1740225053561,-500.0,0.00011698,2]
[354078617,1740225053570,-500.0,0.00011698,2]
[354078618,1740225053579,-500.0,0.00011698,2]
[354078619,1740225053587,-500.0,0.00011698,2]
[354078620,1740225053597,-163.91,0.00011698,2]
[354078621,1740225053606,-500.0,0.00011698,2]
[354078622,1740225053615,-500.0,0.00011698,2]
[354078623,1740225053624,-500.0,0.00011698,2]
[354078624,1740225053633,-500.0,0.00011698,2]
[354078625,1740225053642,-500.0,0.00011698,2]
[354078626,1740225053651,-234.26340452,0.00011779,2]
[354078627,1740225053660,-500.0,0.00011779,2]
[354078628,1740225053669,-500.0,0.00011779,2]
[354078629,1740225053677,-500.0,0.00011779,2]
[354078630,1740225053687,-1663.07,0.00011779,2]
[354078631,1740225053695,-500.0,0.00011779,2]
[354078632,1740225053704,-500.0,0.0001178,2]
[354078633,1740225053713,-500.0,0.0001178,2]
[354078634,1740225053725,-500.0,0.0001178,2]
[354078635,1740225053733,-500.0,0.0001178,2]
[354078636,1740225053742,-500.0,0.0001178,2]
[354078637,1740225053752,-500.0,0.0001178,2]
[354078638,1740225053763,-545.19419214,0.0001178,2]
[354078639,1740225053772,-500.0,0.0001178,2]
[354078640,1740225053781,-500.0,0.0001178,2]
[354078641,1740225053790,-500.0,0.0001178,2]
[354078642,1740225053799,-500.0,0.0001178,2]
[354078643,1740225053809,-500.0,0.0001178,2]
[354078644,1740225053819,-313.7717194,0.00011805,2]
[354078645,1740225053827,-5963.1997,0.00011858,2]
[354078646,1740225053838,-6248.38068199,0.0001186,2]
[354078647,1740225053848,-500.0,0.00011861,2]
[354078648,1740225053857,-500.0,0.00011861,2]
[354078649,1740225053867,-1663.07,0.00011861,2]
[354078650,1740225053877,-500.0,0.00011861,2]
[354078651,1740225053887,-500.0,0.00011862,2]
[354078652,1740225053897,-500.0,0.00011862,2]
[354078653,1740225053913,-500.0,0.00011862,2]
[354078654,1740225053923,-500.0,0.00011862,2]
[354078655,1740225053933,-150.0,0.00011863,2]
[354078656,1740225053943,-587.82,0.00011863,2]
[354078657,1740225053952,-500.0,0.00011863,2]
[354078658,1740225053962,-500.0,0.00011863,2]
[354078659,1740225053972,-500.0,0.00011863,2]
[354078660,1740225053983,-500.0,0.00011863,2]
[354078661,1740225053992,-500.0,0.00011863,2]
[354078662,1740225054001,-500.0,0.00011863,2]
[354078663,1740225054011,-166.23,0.00011906,2]
[354078664,1740225054020,-500.0,0.00011943,2]
[354078665,1740225054029,-500.0,0.00011943,2]
[354078666,1740225054038,-1663.07,0.00011943,2]
[354078667,1740225054047,-500.0,0.00011943,2]
[354078668,1740225054057,-500.0,0.00011944,2]
[354078669,1740225054067,-500.0,0.00011944,2]
[354078670,1740225054076,-500.0,0.00011944,2]
[354078671,1740225054085,-374.33282669,0.00011944,2]
[354078672,1740225054094,-500.0,0.00011945,2]
[354078673,1740225054103,-500.0,0.00011945,2]
[354078674,1740225054113,-500.0,0.00011945,2]
[354078675,1740225054122,-500.0,0.00011945,2]
[354078676,1740225054131,-500.0,0.00011945,2]
[354078677,1740225054140,-500.0,0.00011945,2]
[354078678,1740225054149,-5719.64,0.00011958,2]
[354078679,1740225054159,-15223.993275,0.00012,2]
[354078680,1740225054168,-150.0,0.00012008,2]
[354078681,1740225054177,-152.32170862,0.00012008,2]
[354078682,1740225054186,-150.0,0.00012008,2]
[354078683,1740225054196,-209.94442415,0.00012011,2]
[354078684,1740225054206,-500.0,0.00012026,2]
[354078685,1740225054215,-500.0,0.00012026,2]
[354078686,1740225054224,-1663.07,0.00012026,2]
[354078687,1740225054234,-500.0,0.00012026,2]
[354078688,1740225054243,-500.0,0.00012027,2]
[354078689,1740225054252,-500.0,0.00012027,2]
[354078690,1740225054262,-400.30004668,0.00012027,2]
[354078691,1740225054271,-500.0,0.00012027,2]
[354078692,1740225054280,-500.0,0.00012027,2]
[354078693,1740225054289,-500.0,0.00012027,2]
[354078694,1740225054298,-500.0,0.00012027,2]
[354078695,1740225054308,-500.0,0.00012027,2]
[354078696,1740225054317,-500.0,0.00012027,2]
[354078697,1740225054326,-500.0,0.00012049,2]
[354078698,1740225054335,-150.0,0.00012049,2]
[354078699,1740225054345,-500.0,0.00012049,2]
[354078700,1740225054354,-150.0,0.00012049,2]
[354078701,1740225054364,-4248.3,0.00012055,2]
[354078702,1740225054374,-541.97,0.00012065,2]
[354078703,1740225054384,-574.823,0.00012067,2]
[354078704,1740225054394,-784.0,0.00012067,2]
[354078705,1740225054403,-908.0,0.00012067,2]
[354078706,1740225054414,-1266.0,0.00012067,2]
[354078707,1740225054424,-1424.0,0.00012067,2]
[354078708,1740225054433,-4030.0,0.00012067,2]
[354078709,1740225054443,-539.0,0.00012067,2]
[354078710,1740225054452,-3918.0,0.00012067,2]
[354078711,1740225054463,-150.0,0.00012067,2]
[354078712,1740225054472,-151.4,0.00012067,2]
[354078713,1740225054482,-439.34,0.00012078,2]
[354078714,1740225054492,-187.09,0.00012078,2]
[354078715,1740225054501,-500.0,0.00012108,2]
[354078716,1740225054511,-500.0,0.00012108,2]
[354078717,1740225054521,-1663.07,0.00012108,2]
[354078718,1740225054530,-197.04465041,0.00012108,2]
[354078719,1740225054540,-500.0,0.00012109,2]
[354078720,1740225054549,-332.53338257,0.00012109,2]
[354078721,1740225054559,-500.0,0.00012109,2]
[354078722,1740225054568,-500.0,0.00012109,2]
[354078723,1740225054706,-500.0,0.00012109,2]
[354078724,1740225054717,-500.0,0.00012109,2]
[354078725,1740225054728,-500.0,0.00012109,2]
[354078726,1740225054737,-626.80410229,0.00012109,2]
[354078727,1740225054747,-313.7717194,0.00012121,2]
[354078728,1740225054756,-6248.38068199,0.00012167,2]
[354078729,1740225054765,-564.1,0.00012174,2]
[354078730,1740225054775,-1000.0,0.00012177,2]
[354078731,1740225054785,-500.0,0.0001219,2]
[354078732,1740225054793,-500.0,0.0001219,2]
[354078733,1740225054803,-1663.07,0.0001219,2]
[354078734,1740225054813,-500.0,0.00012191,2]
[354078735,1740225054823,-500.0,0.00012191,2]
[354078736,1740225054833,-500.0,0.00012191,2]
[354078737,1740225054843,-500.0,0.00012272,2]
[354078738,1740225054852,-1663.07,0.00012272,2]
[354078739,1740225054862,-500.0,0.00012273,2]
[354078740,1740225054871,-500.0,0.00012273,2]
[354078741,1740225054881,-700.0,0.00012324,2]
[354078742,1740225054891,-1000.0,0.00012328,2]
[354078743,1740225054903,-461.50000001,0.00012354,2]
[354078744,1740225054913,-1663.07,0.00012354,2]
[354078745,1740225054923,-500.0,0.00012356,2]
[354078746,1740225054932,-270.38,0.00012378,2]
[354078747,1740225054941,-805.52,0.00012378,2]
[354078748,1740225054951,-439.34,0.00012378,2]
[354078749,1740225054960,-1663.07,0.00012436,2]
[354078750,1740225054970,-313.7717194,0.00012437,2]
[354078751,1740225054980,-500.0,0.00012438,2]
[354078752,1740225054989,-6248.38068199,0.00012473,2]
[354078753,1740225054999,-20000.0,0.000125,2]
[354078754,1740225055009,-1663.07,0.00012519,2]
[354078755,1740225055019,-500.0,0.0001252,2]
[354078756,1740225055028,-209.94442415,0.00012567,2]
[354078757,1740225055037,-1663.07,0.00012601,2]
[354078758,1740225055047,-1000.0,0.00012602,2]
[354078759,1740225055056,-500.0,0.00012602,2]
[354078760,1740225055066,-432.31286095,0.00012637,2]
[354078761,1740225055075,-180.647474,0.00012642,2]
[354078762,1740225055085,-150.0,0.00012675,2]
[354078763,1740225055094,-1663.07,0.00012683,2]
[354078764,1740225055103,-500.0,0.00012684,2]
[354078765,1740225055113,-5000.0,0.000127,2]
[354078766,1740225055122,-600.0,0.000127,4]
[354078767,1740225055132,-437.358,0.000127,2]
[354078768,1740225055142,-313.7717194,0.00012753,2]
[354078769,1740225055151,-1663.07,0.00012765,2]
[354078770,1740225055160,-55.5721927,0.00012767,2]
[354078771,1740225055175,-444.4278073,0.00012767,2]
[354078772,1740225055184,-6248.38068199,0.0001278,2]
[354078773,1740225055194,-500.0,0.00012797,2]
[354078774,1740225055203,-2000.0,0.00012797,2]
[354078775,1740225055213,-500.0,0.00012797,2]
[354078776,1740225055222,-200.0,0.00012797,2]
[354078777,1740225055231,-190.4140401,0.000128,2]
[354078778,1740225055241,-349.731,0.000128,2]
[354078779,1740225055251,-189.437,0.000128,2]
[354078780,1740225055261,-295.91790996,0.000128,2]
[354078781,1740225055271,-312.89413892,0.000128,2]
[354078782,1740225055282,-1000.0,0.000128,4]
[354078783,1740225055291,-1198.74634216,0.00012803,2]
[354078784,1740225055303,-1085.04665784,0.00012803,2]
[354078785,1740225055313,-166.23,0.00012814,2]
[354078786,1740225055322,-1663.07,0.00012847,2]